bitfinex/quotes_BTCUSD_20240607
["timestamp","ask_amount","ask_price","bid_price","bid_amount"]
[1717774642615,2.140771,71037.0,71036.0,0.31332766]
[1717774643005,2.140771,71037.0,71036.0,0.31632766]
[1717774643740,2.140771,71037.0,71036.0,0.31532766]
[1717774643937,2.14107684,71037.0,71036.0,0.31532766]
[1717774644145,2.14107684,71037.0,71036.0,0.14912766]
[1717774644681,2.14107684,71037.0,71036.0,0.15012766]
[1717774645267,2.14107684,71037.0,71036.0,0.14712574]
[1717774645463,2.14107684,71037.0,71036.0,0.14612574]
[1717774645903,2.14107684,71037.0,71036.0,0.14812574]
[1717774646105,2.140771,71037.0,71036.0,0.14812574]
[1717774646324,2.140771,71037.0,71036.0,0.30272574]
[1717774647731,2.140771,71037.0,71036.0,0.30372574]
[1717774649169,2.140771,71037.0,71036.0,0.31372574]
[1717774649418,2.140771,71037.0,71036.0,0.30372574]
[1717774649630,2.141631,71037.0,71036.0,0.31372574]
[1717774650001,2.141631,71037.0,71036.0,0.30372574]
[1717774651191,2.14193684,71037.0,71036.0,0.1576]
[1717774651390,2.14193684,71037.0,71036.0,0.30372175]
[1717774651800,2.14193684,71037.0,71036.0,0.14912175]
[1717774652787,2.14193684,71037.0,71036.0,0.003]
[1717774652996,2.42347984,71037.0,71036.0,0.003]
[1717774653141,2.58457984,71037.0,71036.0,0.003]
[1717774653925,0.14079,71028.0,71026.0,0.1528]
[1717774654147,0.14079,71028.0,71027.0,0.15376515]
[1717774654345,0.14109184,71030.0,71027.0,0.15376515]
[1717774654564,0.140787,71029.0,71027.0,0.15376515]
[1717774654777,0.140787,71029.0,71028.0,0.14613412]
[1717774655170,0.140787,71029.0,71028.0,0.15376096]
[1717774656736,0.14109284,71029.0,71028.0,0.15376096]
[1717774657002,0.140787,71029.0,71028.0,0.15375952]
[1717774657206,0.141787,71029.0,71028.0,0.15975952]
[1717774657748,0.140787,71029.0,71028.0,0.15375952]
[1717774658171,0.141787,71029.0,71028.0,0.15975952]
[1717774658382,0.142787,71029.0,71028.0,0.16175952]
[1717774658784,0.14209284,71029.0,71028.0,0.15975952]
[1717774659200,0.14309284,71029.0,71028.0,0.16377565]
[1717774659413,0.14309284,71029.0,71028.0,0.01442865]
[1717774659838,0.14309284,71029.0,71028.0,0.008]
[1717774661352,0.142787,71029.0,71028.0,0.008]
[1717774661569,0.14309284,71029.0,71028.0,0.008]
[1717774664857,0.11589284,71029.0,71028.0,0.008]
[1717774665302,0.39746784,71029.0,71028.0,0.008]
[1717774665759,0.62626784,71029.0,71028.0,0.008]
[1717774666391,0.63626784,71029.0,71028.0,0.008]
[1717774667091,0.62626784,71029.0,71028.0,0.008]
[1717774668745,0.69849608,71029.0,71028.0,0.008]
[1717774669363,0.70849608,71029.0,71028.0,0.008]
[1717774669573,1.13449001,71029.0,71028.0,0.008]
[1717774669933,1.13449001,71029.0,71028.0,0.006]
[1717774669934,1.13349001,71029.0,71028.0,0.006]
[1717774670158,0.14111484,71018.0,71017.0,0.000946]
[1717774670360,0.14111484,71018.0,71017.0,0.00746756]
[1717774671575,0.14211484,71018.0,71017.0,0.01346756]
[1717774671822,0.14211484,71018.0,71017.0,0.006946]
[1717774672011,0.14311484,71018.0,71017.0,0.002946]
[1717774672316,0.14111484,71018.0,71017.0,0.000946]
[1717774672715,0.14111484,71018.0,71017.0,0.002946]
[1717774672852,0.14211484,71018.0,71017.0,0.002946]
[1717774673696,0.14311484,71018.0,71017.0,0.008946]
[1717774674353,0.14211484,71018.0,71017.0,0.002946]
[1717774674549,0.141809,71018.0,71017.0,0.002946]
[1717774674751,0.141809,71018.0,71017.0,0.006946]
[1717774674956,0.14211484,71018.0,71017.0,0.006946]
[1717774675207,0.14211484,71018.0,71017.0,0.002946]
[1717774675630,0.14111484,71018.0,71017.0,0.000946]
[1717774675847,0.14111484,71018.0,71017.0,0.006946]
[1717774677546,0.29531484,71018.0,71017.0,0.006946]
[1717774678850,0.57693284,71018.0,71017.0,0.006946]
[1717774682009,0.94945084,71018.0,71017.0,0.006946]
[1717774682618,1.37548777,71018.0,71017.0,0.006946]
[1717774683019,1.52738777,71018.0,71017.0,0.006946]
[1717774683433,1.52738777,71018.0,71017.0,0.004946]
[1717774683855,1.87150503,71018.0,71017.0,0.006946]
[1717774684088,3.47150503,71018.0,71017.0,0.002946]
[1717774684300,3.48150503,71018.0,71017.0,0.003946]
[1717774685333,3.48150503,71018.0,71017.0,0.001946]
[1717774685538,3.57150503,71018.0,71017.0,0.000946]
[1717774685756,4.83834103,71018.0,71017.0,0.000946]
[1717774686006,4.83834103,71018.0,71017.0,0.001946]
[1717774686007,4.85034103,71018.0,71017.0,0.001946]
[1717774686219,3.35034103,71018.0,71017.0,0.001946]
[1717774686437,3.36234103,71018.0,71017.0,0.001946]
[1717774686865,3.35034103,71018.0,71017.0,0.001946]
[1717774687346,3.36434103,71018.0,71017.0,0.001946]
[1717774687563,3.41453243,71018.0,71017.0,0.000946]
[1717774687990,3.42853243,71018.0,71017.0,0.001946]
[1717774688488,3.18482343,71018.0,71017.0,0.001946]
[1717774688620,3.17082343,71018.0,71017.0,0.000946]
[1717774688863,3.10863203,71018.0,71017.0,0.000946]
[1717774690024,3.12263203,71018.0,71017.0,0.001946]
[1717774690241,4.62263203,71018.0,71017.0,0.001946]
[1717774690887,4.42263203,71018.0,71017.0,0.001946]
[1717774691320,1.65538777,71018.0,71017.0,0.001946]
[1717774691963,1.25438777,71018.0,71017.0,0.000946]
[1717774692482,1.26838777,71018.0,71017.0,0.001946]
[1717774692697,1.24438777,71018.0,71017.0,0.001946]
[1717774692920,0.80435084,71018.0,71017.0,0.000946]
[1717774693136,0.81835084,71018.0,71017.0,0.234846]
[1717774693356,0.81835084,71018.0,71017.0,0.235846]
[1717774693357,0.83235084,71018.0,71017.0,0.235846]
[1717774693998,0.83235084,71018.0,71017.0,0.080146]
[1717774694212,0.45073284,71018.0,71017.0,0.080146]
[1717774695535,0.42273284,71018.0,71017.0,0.080146]
[1717774695755,0.43673284,71018.0,71017.0,0.081146]
[1717774695982,0.44773284,71018.0,71017.0,0.081146]
[1717774696231,0.43373284,71018.0,71017.0,0.080146]
[1717774696453,0.42273284,71018.0,71017.0,0.080146]
[1717774696659,0.42273284,71018.0,71017.0,0.002946]
[1717774696877,0.42273284,71018.0,71017.0,0.003946]
[1717774697310,0.42273284,71018.0,71017.0,0.000946]
[1717774697751,0.42273284,71018.0,71017.0,0.002946]
[1717774698124,0.43273284,71018.0,71017.0,0.002946]
[1717774698469,0.42273284,71018.0,71017.0,0.002946]
[1717774699211,0.42273284,71018.0,71017.0,0.001946]
[1717774699353,0.42273284,71018.0,71017.0,0.000946]
[1717774699556,0.42473284,71018.0,71017.0,0.000946]
[1717774699756,0.42673284,71018.0,71017.0,0.000946]
[1717774700255,0.43273284,71018.0,71017.0,0.000946]
[1717774700582,0.86076977,71018.0,71017.0,0.000946]
[1717774700782,1.02646977,71018.0,71017.0,0.000946]
[1717774700969,1.02546977,71018.0,71017.0,0.000946]
[1717774702556,1.02446977,71018.0,71017.0,0.000946]
[1717774702989,1.02746977,71018.0,71017.0,0.000946]
[1717774703187,1.02846977,71018.0,71017.0,0.000946]
[1717774703464,1.02446977,71018.0,71017.0,0.000946]
[1717774703914,1.03846977,71018.0,71017.0,0.001946]
[1717774704102,1.03146977,71018.0,71017.0,0.001946]
[1717774704522,1.03146977,71018.0,71017.0,0.000946]
[1717774704852,1.02446977,71018.0,71017.0,0.000946]
[1717774706629,1.03146977,71018.0,71017.0,0.000946]
[1717774706858,1.03846977,71018.0,71017.0,0.001946]
[1717774707270,1.03146977,71018.0,71017.0,0.000946]
[1717774707617,1.03846977,71018.0,71017.0,0.001946]
[1717774707827,1.06136994,71018.0,71017.0,0.001946]
[1717774708033,1.03846977,71018.0,71017.0,0.001946]
[1717774709333,0.87276977,71018.0,71017.0,0.001946]
[1717774711041,0.86276977,71018.0,71017.0,0.001946]
[1717774711259,1.35438777,71018.0,71017.0,0.001946]
[1717774711466,2.26388861,71018.0,71017.0,0.001946]
[1717774711663,2.20161277,71018.0,71017.0,0.001946]
[1717774712306,2.28469776,71018.0,71017.0,0.001946]
[1717774713517,1.99461277,71018.0,71017.0,0.001946]
[1717774713967,2.30540584,71018.0,71017.0,0.001946]
[1717774714372,2.19461277,71018.0,71017.0,0.001946]
[1717774714574,2.18761277,71018.0,71017.0,0.000946]
[1717774714782,2.34981277,71018.0,71017.0,0.000946]
[1717774714998,2.35581277,71018.0,71017.0,0.000946]
[1717774715604,3.84981277,71018.0,71017.0,0.000946]
[1717774716097,3.86381277,71018.0,71017.0,0.000946]
[1717774717706,3.66381277,71018.0,71017.0,0.000946]
[1717774717940,2.1748818,71018.0,71017.0,0.000946]
[1717774718100,1.7723568,71018.0,71017.0,0.000946]
[1717774718455,2.58346977,71018.0,71017.0,0.000946]
[1717774718883,2.6873388,71018.0,71017.0,0.000946]
[1717774719109,2.6733388,71018.0,71017.0,0.000946]
[1717774719319,2.56946977,71018.0,71017.0,0.000946]
[1717774719524,2.78346977,71018.0,71017.0,0.000946]
[1717774719773,2.58346977,71018.0,71017.0,0.000946]
[1717774720009,2.56946977,71018.0,71017.0,0.000946]
[1717774720389,2.58346977,71018.0,71017.0,0.000946]
[1717774721320,2.78346977,71018.0,71017.0,0.000946]
[1717774721728,2.58346977,71018.0,71017.0,0.000946]
[1717774722614,2.35677877,71018.0,71017.0,0.000946]
[1717774723199,2.55677877,71018.0,71017.0,0.000946]
[1717774723416,2.20487877,71018.0,71017.0,0.000946]
[1717774723639,2.35677877,71018.0,71017.0,0.000946]
[1717774723845,2.55660932,71018.0,71017.0,0.000946]
[1717774724670,4.05660932,71018.0,71017.0,0.000946]
[1717774725427,3.85660932,71018.0,71017.0,0.000946]
[1717774725861,4.05660932,71018.0,71017.0,0.000946]
[1717774726278,3.85660932,71018.0,71017.0,0.000946]
[1717774727124,3.84630348,71018.0,71017.0,0.000946]
[1717774727345,3.85660932,71018.0,71017.0,0.000946]
[1717774727558,3.84630348,71018.0,71017.0,0.000946]
[1717774727760,3.85660932,71018.0,71017.0,0.000946]
[1717774727962,3.96560932,71018.0,71017.0,0.000946]
[1717774729808,3.90470932,71018.0,71017.0,0.000946]
[1717774729983,3.96560932,71018.0,71017.0,0.000946]
[1717774734614,1.94650932,71018.0,71017.0,0.000946]
[1717774734861,2.11136007,71018.0,71017.0,0.233546]
[1717774735067,1.25821832,71018.0,71017.0,0.079946]
[1717774735273,1.40228063,71018.0,71017.0,0.079946]
[1717774735477,1.31881248,71018.0,71017.0,0.079946]
[1717774735678,1.31911832,71018.0,71017.0,0.079946]
[1717774736069,0.97660032,71018.0,71017.0,0.079946]
[1717774736297,0.83218139,71018.0,71017.0,0.239846]
[1717774736510,0.16894539,71018.0,71017.0,0.239846]
[1717774736713,0.16863955,71018.0,71017.0,0.239846]
[1717774736930,0.16863955,71018.0,71017.0,0.24921999]
[1717774737084,0.15463955,71018.0,71017.0,0.24921999]
[1717774737716,0.42256339,71018.0,71017.0,0.24921999]
[1717774737948,0.28192384,71018.0,71017.0,0.24921999]
[1717774738177,0.29592384,71018.0,71017.0,0.24921999]
[1717774738535,0.28192384,71018.0,71017.0,0.24921999]
[1717774738742,0.140809,71018.0,71017.0,0.24921999]
[1717774739054,0.140809,71018.0,71017.0,0.25021999]
[1717774739372,0.154809,71018.0,71017.0,0.24921999]
[1717774739777,0.140809,71018.0,71017.0,0.24921999]
[1717774740026,0.146809,71018.0,71017.0,0.24921999]
[1717774740475,0.15211484,71018.0,71017.0,0.25021999]
[1717774740677,0.43373284,71018.0,71017.0,0.25021999]
[1717774741022,0.42873284,71018.0,71017.0,0.24921999]
[1717774741670,0.14711484,71018.0,71017.0,0.24921999]
[1717774741886,0.14111484,71018.0,71017.0,0.24921999]
[1717774742146,0.14111484,71018.0,71017.0,0.25021999]
[1717774742354,0.14211484,71018.0,71017.0,0.25021999]
[1717774742554,0.14111484,71018.0,71017.0,0.24921999]
[1717774742763,0.141809,71018.0,71017.0,0.25421999]
[1717774742968,0.147809,71018.0,71017.0,0.25421999]
[1717774743185,0.14811484,71018.0,71017.0,0.25421999]
[1717774743383,0.14711484,71018.0,71017.0,0.24921999]
[1717774744432,0.151809,71018.0,71017.0,0.25021999]
[1717774745069,0.15211484,71018.0,71017.0,0.25021999]
[1717774745242,0.151809,71018.0,71017.0,0.25021999]
[1717774745892,0.15211484,71018.0,71017.0,0.25021999]
[1717774746120,0.151809,71018.0,71017.0,0.25021999]
[1717774746331,0.15211484,71018.0,71017.0,0.25021999]
[1717774746889,0.15297484,71018.0,71017.0,0.25021999]
[1717774747088,0.152669,71018.0,71017.0,0.25021999]
[1717774747312,0.15297484,71018.0,71017.0,0.25021999]
[1717774747882,0.49549284,71018.0,71017.0,0.09031999]
[1717774748560,0.43459284,71018.0,71017.0,0.09031999]
[1717774752034,0.49549284,71018.0,71017.0,0.09031999]
[1717774752836,0.49549284,71018.0,71017.0,0.08734486]
[1717774753056,0.43459284,71018.0,71017.0,0.08734486]
[1717774761307,0.152669,71018.0,71017.0,0.25184486]
[1717774761522,0.01186,71018.0,71017.0,0.26184486]
[1717774761752,0.01186,71018.0,71017.0,0.265052]
[1717774761998,0.01186,71018.0,71017.0,0.40837629]
[1717774762646,0.01186,71018.0,71017.0,0.54818729]
[1717774762647,0.00086,71018.0,71017.0,0.54818729]
[1717774762853,0.00086,71018.0,71017.0,0.55218729]
[1717774763058,0.00086,71018.0,71017.0,0.55318729]
[1717774763335,0.00086,71018.0,71017.0,0.55218729]
[1717774763557,0.140779,71034.0,71030.0,0.1549]
[1717774763799,0.4,71039.0,71032.0,0.1649]
[1717774763800,2.141632,71037.0,71032.0,0.1649]
[1717774763988,2.141632,71037.0,71036.0,0.1374]
[1717774763989,2.00086,71037.0,71036.0,0.1374]
[1717774764202,2.00086,71037.0,71036.0,0.2923]
[1717774764425,2.00086,71037.0,71036.0,0.43842304]
[1717774764834,2.00086,71037.0,71036.0,0.38417147]
[1717774765257,2.00086,71037.0,71036.0,0.39417147]
[1717774766555,2.00086,71037.0,71036.0,0.39517147]
[1717774766759,2.00086,71037.0,71036.0,0.39617147]
[1717774767285,2.00086,71037.0,71036.0,0.6813634]
[1717774767485,2.00086,71037.0,71036.0,0.5405904]
[1717774768340,2.00086,71037.0,71036.0,0.5385904]
[1717774768551,2.00186,71037.0,71036.0,0.5445904]
[1717774768734,2.00186,71037.0,71036.0,0.5495904]
[1717774768939,2.00186,71037.0,71036.0,0.5445904]
[1717774769145,2.00086,71037.0,71036.0,0.5385904]
[1717774769341,2.00086,71037.0,71036.0,0.5435904]
[1717774769572,2.00186,71037.0,71036.0,0.5495904]
[1717774771003,2.00186,71037.0,71036.0,0.6104904]
[1717774771597,2.00186,71037.0,71036.0,0.7512634]
[1717774772025,1.91856,71037.0,71036.0,0.92380951]
[1717774772217,1.91856,71037.0,71036.0,1.02380951]
[1717774772426,1.91856,71037.0,71036.0,0.6903634]
[1717774772688,1.91856,71037.0,71036.0,0.7512634]
[1717774772895,1.91856,71037.0,71036.0,0.6903634]
[1717774773225,1.91856,71037.0,71036.0,0.6793634]
[1717774773226,1.91756,71037.0,71036.0,0.6793634]
[1717774773449,1.91856,71037.0,71036.0,0.6853634]
[1717774773684,1.91956,71037.0,71036.0,0.6913634]
[1717774774216,1.91856,71037.0,71036.0,0.6853634]
[1717774774860,1.91756,71037.0,71036.0,0.6793634]
[1717774775078,1.91756,71037.0,71036.0,0.38417147]
[1717774775290,1.91856,71037.0,71036.0,0.38917147]
[1717774775506,1.91856,71037.0,71036.0,0.38417147]
[1717774775717,1.91756,71037.0,71036.0,0.38947147]
[1717774775970,1.91756,71037.0,71036.0,0.39447147]
[1717774776197,1.91756,71037.0,71036.0,0.39282304]
[1717774776422,1.91756,71037.0,71036.0,0.38782304]
[1717774776604,1.91756,71037.0,71036.0,0.39282304]
[1717774777168,1.91756,71037.0,71036.0,0.38782304]
[1717774777591,1.91756,71037.0,71036.0,0.39476506]
[1717774777798,1.91756,71037.0,71036.0,0.25364202]
[1717774778001,1.91756,71037.0,71036.0,0.16304071]
[1717774778172,1.91786584,71037.0,71036.0,0.16304071]
[1717774778396,1.91786584,71037.0,71036.0,0.01]
[1717774778600,2.05863684,71037.0,71036.0,0.01]
[1717774778982,2.05863684,71037.0,71036.0,0.005]
[1717774779180,0.140784,71031.0,71028.0,0.23806947]
[1717774779578,0.140785,71030.0,71028.0,0.23806947]
[1717774779766,0.140785,71030.0,71029.0,0.00709501]
[1717774783246,0.002,71031.0,71029.0,0.00709501]
[1717774783718,0.001,71030.0,71029.0,0.005]
[1717774784205,0.001,71030.0,71029.0,0.02210168]
[1717774784443,0.002,71030.0,71029.0,0.02810168]
[1717774784899,0.001,71030.0,71029.0,0.16752061]
[1717774785120,0.001,71030.0,71029.0,0.46842061]
[1717774785341,0.001,71030.0,71029.0,0.97209265]
[1717774785568,0.001,71030.0,71029.0,0.80920761]
[1717774785787,0.001,71030.0,71029.0,0.95531464]
[1717774786012,0.001,71030.0,71029.0,0.75531464]
[1717774786265,0.001,71030.0,71029.0,0.89941464]
[1717774786488,0.001,71030.0,71029.0,0.95531464]
[1717774786711,0.001,71030.0,71029.0,0.89441464]
[1717774786930,0.001,71030.0,71029.0,0.95531464]
[1717774787145,0.001,71030.0,71029.0,0.95431464]
[1717774787373,0.001,71030.0,71029.0,0.69341464]
[1717774787805,0.001,71030.0,71029.0,0.55762764]
[1717774788217,0.001,71030.0,71029.0,0.54262764]
[1717774788425,0.001,71030.0,71029.0,0.39820871]
[1717774788848,0.001,71030.0,71029.0,0.15820871]
[1717774789022,0.001,71030.0,71029.0,0.16320871]
[1717774789738,0.001,71030.0,71029.0,0.17320871]
[1717774791623,0.001,71030.0,71029.0,0.02710168]
[1717774791812,0.001,71030.0,71029.0,0.16322316]
[1717774792971,0.001,71030.0,71029.0,0.16322289]
[1717774794803,0.141785,71030.0,71029.0,0.16322289]
[1717774795432,1.13565084,71037.0,71029.0,0.16322289]
[1717774795645,1.13565084,71037.0,71030.0,0.14612121]
[1717774795846,1.13565084,71037.0,71031.0,0.14612912]
[1717774796090,0.140785,71030.0,71029.0,0.01]
[1717774796298,0.140785,71030.0,71029.0,0.15823623]
[1717774796643,0.140785,71030.0,71029.0,0.16323623]
[1717774797052,0.140785,71030.0,71029.0,0.15323623]
[1717774797252,0.140785,71030.0,71029.0,0.15823623]
[1717774797461,0.140785,71030.0,71029.0,0.16323623]
[1717774798079,0.140785,71030.0,71029.0,0.15823623]
[1717774798327,0.140785,71030.0,71029.0,0.15323623]
[1717774798506,0.140785,71030.0,71029.0,0.15823623]
[1717774799137,0.140785,71030.0,71029.0,0.15323623]
[1717774800016,0.140785,71030.0,71029.0,0.15823623]
[1717774800215,0.140785,71030.0,71029.0,0.15323623]
[1717774800696,0.140785,71030.0,71029.0,0.15823623]
[1717774800863,0.140779,71034.0,71031.0,0.02]
[1717774801060,1.27642184,71037.0,71032.0,0.2505]
[1717774802011,0.14060457,71036.0,71032.0,0.2305]
[1717774802420,1.13565084,71037.0,71033.0,0.14612507]
[1717774802637,1.13565084,71037.0,71034.0,0.02]
[1717774802845,1.13565084,71037.0,71035.0,0.14611932]
[1717774803046,1.13565084,71037.0,71034.0,0.00708197]
[1717774803193,1.13565084,71037.0,71036.0,0.0070736]
[1717774803395,0.140773,71036.0,71035.0,0.00707778]
[1717774803598,0.07222824,71036.0,71032.0,0.005]
[1717774803828,0.140779,71033.0,71032.0,0.005]
[1717774804211,0.140779,71033.0,71032.0,0.15112795]
[1717774804386,0.140779,71033.0,71032.0,0.005]
[1717774804907,1.13565084,71037.0,71032.0,0.005]
[1717774804908,0.140777,71035.0,71032.0,0.14613252]
[1717774805228,0.140777,71035.0,71032.0,0.01]
[1717774805467,0.140777,71035.0,71033.0,0.22452914]
[1717774805654,0.140777,71035.0,71034.0,0.14612914]
[1717774806018,1.13565084,71037.0,71033.0,0.0784]
[1717774806417,1.13565084,71037.0,71034.0,0.14612859]
[1717774806641,0.21300224,71036.0,71033.0,0.0784]
[1717774806886,0.21300224,71036.0,71034.0,0.14612674]
[1717774807082,0.21300224,71036.0,71033.0,0.0784]
[1717774807283,0.21300224,71036.0,71034.0,0.14612673]
[1717774807485,0.21300224,71036.0,71035.0,0.14612673]
[1717774808062,1.13565084,71037.0,71036.0,0.02]
[1717774808268,1.13565084,71037.0,71036.0,0.14612673]
[1717774808682,1.13565084,71037.0,71036.0,0.32412673]
[1717774809166,1.13565084,71037.0,71036.0,0.31120271]
[1717774809374,1.13565084,71037.0,71036.0,0.40680271]
[1717774809593,1.13565084,71037.0,71036.0,0.40780271]
[1717774809800,1.13565084,71037.0,71036.0,0.55222164]
[1717774810025,1.13565084,71037.0,71036.0,0.6276438]
[1717774810506,1.13565084,71037.0,71036.0,0.69299464]
[1717774810729,1.13565084,71037.0,71036.0,0.69399464]
[1717774811127,1.13565084,71037.0,71036.0,0.89299464]
[1717774811525,1.13565084,71037.0,71036.0,0.69799464]
[1717774811698,1.13565084,71037.0,71036.0,0.69199464]
[1717774812108,1.13565084,71037.0,71036.0,0.70199464]
[1717774812650,1.13565084,71037.0,71036.0,1.00950813]
[1717774813283,1.13565084,71037.0,71036.0,0.80950813]
[1717774813489,1.13565084,71037.0,71036.0,0.80450813]
[1717774813693,1.13565084,71037.0,71036.0,1.00450813]
[1717774813973,1.13565084,71037.0,71036.0,0.80950813]
[1717774814221,1.13565084,71037.0,71036.0,0.99950813]
[1717774814627,1.13565084,71037.0,71036.0,1.00450813]
[1717774815272,1.13565084,71037.0,71036.0,1.24478168]
[1717774815508,1.13565084,71037.0,71036.0,1.38605513]
[1717774815717,1.13565084,71037.0,71036.0,1.80514728]
[1717774816531,1.13565084,71037.0,71036.0,1.81014728]
[1717774817804,1.13565084,71037.0,71036.0,1.80514728]
[1717774818369,1.13565084,71037.0,71036.0,1.81014728]
[1717774820195,1.13565084,71037.0,71036.0,2.08169428]
[1717774820398,1.13565084,71037.0,71036.0,2.09069428]
[1717774820811,1.13565084,71037.0,71036.0,2.23489428]
[1717774821006,1.05235084,71037.0,71036.0,2.23389428]
[1717774821213,0.52875341,71037.0,71036.0,2.23389428]
[1717774821410,0.52875341,71037.0,71036.0,2.51944128]
[1717774821411,0.28430085,71037.0,71036.0,2.51944128]
[1717774821597,0.28430085,71037.0,71036.0,2.58255108]
[1717774821807,0.28430085,71037.0,71036.0,2.51944128]
[1717774822797,0.28430085,71037.0,71036.0,2.60361472]
[1717774822992,0.20100085,71037.0,71036.0,2.60361472]
[1717774823199,0.15701695,71037.0,71036.0,2.59961472]
[1717774823436,0.15701695,71037.0,71036.0,2.57853257]
[1717774823770,0.15701695,71037.0,71036.0,2.52044128]
[1717774823932,0.15701695,71037.0,71036.0,2.58352999]
[1717774824346,0.15701695,71037.0,71036.0,2.52044128]
[1717774824960,0.15701695,71037.0,71036.0,2.58352999]
[1717774825443,0.15701695,71037.0,71036.0,2.52044128]
[1717774825675,0.15701695,71037.0,71036.0,2.5624781]
[1717774825872,0.15701695,71037.0,71036.0,2.56247812]
[1717774826226,0.15701695,71037.0,71036.0,2.52044128]
[1717774827239,0.15701695,71037.0,71036.0,2.56247105]
[1717774828066,0.15701695,71037.0,71036.0,2.52044128]
[1717774828237,0.15701695,71037.0,71036.0,2.56247105]
[1717774828439,0.15701695,71037.0,71036.0,2.52044128]
[1717774828839,0.15701695,71037.0,71036.0,2.56245658]
[1717774829070,0.15701695,71037.0,71036.0,2.52044128]
[1717774829308,0.15701695,71037.0,71036.0,2.67244128]
[1717774830889,0.15701695,71037.0,71036.0,2.45330995]
[1717774831264,0.15701695,71037.0,71036.0,2.67244128]
[1717774831510,0.15701695,71037.0,71036.0,2.46029805]
[1717774832305,0.15701695,71037.0,71036.0,2.67942938]
[1717774832512,0.15701695,71037.0,71036.0,2.67442938]
[1717774833988,0.15701695,71037.0,71036.0,2.73176438]
[1717774834195,0.15701695,71037.0,71036.0,2.73576438]
[1717774834507,0.15701695,71037.0,71036.0,2.73176438]
[1717774834710,0.15701695,71037.0,71036.0,2.72676438]
[1717774835012,0.15701695,71037.0,71036.0,2.73076438]
[1717774835550,0.15701695,71037.0,71036.0,2.73576438]
[1717774841131,0.15701695,71037.0,71036.0,3.02788035]
[1717774841937,0.15701695,71037.0,71036.0,2.73576438]
[1717774842141,0.15701695,71037.0,71036.0,3.02788337]
[1717774842633,0.15701695,71037.0,71036.0,2.73576438]
[1717774842831,0.15701695,71037.0,71036.0,2.73671038]
[1717774843056,0.15701695,71037.0,71036.0,3.02883444]
[1717774843860,0.15572051,71037.0,71036.0,3.02883444]
[1717774845316,0.15572051,71037.0,71036.0,3.10183394]
[1717774845517,0.15572051,71037.0,71036.0,3.02876064]
[1717774849259,0.15572051,71037.0,71036.0,3.07075395]
[1717774850297,0.15572051,71037.0,71036.0,3.09175061]
[1717774850645,0.15572051,71037.0,71036.0,3.02876064]
[1717774851703,0.15572051,71037.0,71036.0,3.09187741]
[1717774852310,0.15572051,71037.0,71036.0,3.02876064]
[1717774853315,0.15572051,71037.0,71036.0,3.11274727]
[1717774853860,0.15572051,71037.0,71036.0,2.80876064]
[1717774854060,0.15572051,71037.0,71036.0,3.02876064]
[1717774854243,0.15572051,71037.0,71036.0,2.91374393]
[1717774854431,0.15572051,71037.0,71036.0,3.13374393]
[1717774854673,0.15572051,71037.0,71036.0,3.13373466]
[1717774854875,0.15572051,71037.0,71036.0,3.02875137]
[1717774855470,0.15572051,71037.0,71036.0,2.87675137]
[1717774855676,0.15572051,71037.0,71036.0,2.79515137]
[1717774855897,0.15572051,71037.0,71036.0,2.80921052]
[1717774856265,0.15572051,71037.0,71036.0,2.70385137]
[1717774860402,0.15572051,71037.0,71036.0,2.25565137]
[1717774860623,0.15572051,71037.0,71036.0,1.83185737]
[1717774860869,0.15572051,71037.0,71036.0,2.17410437]
[1717774861074,0.15572051,71037.0,71036.0,2.25851186]
[1717774861355,0.15572051,71037.0,71036.0,2.17410437]
[1717774861574,0.15572051,71037.0,71036.0,1.97410437]
[1717774861798,0.15572051,71037.0,71036.0,1.68755737]
[1717774862020,0.39792051,71037.0,71036.0,0.83319558]
[1717774862230,0.39792051,71037.0,71036.0,0.50425781]
[1717774862455,0.39792051,71037.0,71036.0,0.45367314]
[1717774862666,0.53869151,71037.0,71036.0,0.16151369]
[1717774862878,0.53869151,71037.0,71036.0,0.16551369]
[1717774863098,0.140785,71030.0,71029.0,0.000946]
[1717774863402,0.387785,71030.0,71029.0,0.14707366]
[1717774863582,0.387785,71030.0,71029.0,0.14357366]
[1717774863807,0.0607,71031.0,71017.0,0.000946]
[1717774863808,0.247,71026.0,71017.0,0.000946]
[1717774864035,0.083,71023.0,71018.0,0.14441893]
[1717774864258,0.164,71022.0,71018.0,0.14441893]
[1717774864477,0.164,71022.0,71018.0,0.16441893]
[1717774864701,0.164,71022.0,71019.0,0.02]
[1717774864912,0.164,71022.0,71017.0,0.000946]
[1717774864913,0.164,71022.0,71021.0,0.02]
[1717774865130,0.164,71022.0,71021.0,0.16441893]
[1717774865544,0.164,71022.0,71021.0,0.14441893]
[1717774865953,0.164,71022.0,71021.0,0.16441893]
[1717774866188,0.164,71022.0,71021.0,0.14441893]
[1717774866504,0.164,71022.0,71021.0,0.15241893]
[1717774866505,0.2447,71022.0,71021.0,0.15241893]
[1717774866705,0.26917,71022.0,71021.0,0.15241893]
[1717774867023,0.26917,71022.0,71021.0,0.14441893]
[1717774867246,0.2447,71022.0,71021.0,0.14841893]
[1717774869035,0.2447,71022.0,71021.0,0.15241893]
[1717774869452,0.2447,71022.0,71021.0,0.14441893]
[1717774869860,0.2447,71022.0,71021.0,0.15241893]
[1717774870411,0.2447,71022.0,71021.0,0.14441893]
[1717774870819,0.2447,71022.0,71021.0,0.15094931]
[1717774872214,0.2447,71022.0,71021.0,0.15894931]
[1717774872424,0.2447,71022.0,71021.0,0.17494931]
[1717774872635,0.2447,71022.0,71021.0,0.15494931]
[1717774872846,0.1545,71026.0,71025.0,0.02]
[1717774873051,0.1545,71026.0,71025.0,0.16441893]
[1717774873255,0.1545,71030.0,71029.0,0.02]
[1717774873465,0.1545,71030.0,71029.0,0.16441893]
[1717774873642,0.157,71035.0,71032.0,0.02]
[1717774873850,0.157,71035.0,71033.0,0.14441893]
[1717774874000,0.157,71035.0,71033.0,0.15091268]
[1717774874611,0.157,71035.0,71033.0,0.17091268]
[1717774875445,0.0758,71036.0,71035.0,0.02]
[1717774875446,0.2328,71036.0,71035.0,0.02]
[1717774875654,0.2328,71036.0,71035.0,0.16441893]
[1717774876000,0.2328,71036.0,71035.0,0.31697825]
[1717774877053,0.2328,71036.0,71035.0,0.32021171]
[1717774877255,0.15572051,71037.0,71036.0,0.02]
[1717774877463,0.15572051,71037.0,71036.0,0.31051132]
[1717774877635,0.15572051,71037.0,71036.0,0.32018634]